[Event "*** Titled Tuesday Blitz"]
[Site "Chess.com"]
[Date "2020.04.28"]
[Round "4"]
[White "korkmaz16"]
[Black "ChessicallyInclined"]
[Result "1-0"]
[WhiteElo "2272"]
[BlackElo "2531"]
[TimeControl "180+1"]
[EndTime "10:40:57 PDT"]
[Termination "korkmaz16 won on time"]

1. e4 {[%clk 0:02:41.6]} 1... c5 {[%clk 0:02:47.7]} 2. Nc3 {[%clk 0:02:40]} 2...
Nc6 {[%clk 0:02:31.8]} 3. f4 {[%clk 0:02:39.3]} 3... g6 {[%clk 0:02:29.8]} 4.
Nf3 {[%clk 0:02:39.1]} 4... Bg7 {[%clk 0:02:25.2]} 5. Bb5 {[%clk 0:02:38.8]}
5... a6 {[%clk 0:02:21.2]} 6. Bxc6 {[%clk 0:02:38.1]} 6... bxc6 {[%clk
0:02:22.1]} 7. O-O {[%clk 0:02:37.9]} 7... d6 {[%clk 0:02:22.1]} 8. d3 {[%clk
0:02:37.7]} 8... Nf6 {[%clk 0:02:18.4]} 9. Qe1 {[%clk 0:02:37.9]} 9... O-O
{[%clk 0:02:14]} 10. f5 {[%clk 0:02:38.2]} 10... gxf5 {[%clk 0:02:09.6]} 11. Qh4
{[%clk 0:02:35.2]} 11... fxe4 {[%clk 0:02:08.6]} 12. Ng5 {[%clk 0:02:16.9]}
12... h6 {[%clk 0:02:05.2]} 13. Ngxe4 {[%clk 0:02:15.2]} 13... Nxe4 {[%clk
0:01:59]} 14. Nxe4 {[%clk 0:02:13.7]} 14... f5 {[%clk 0:01:43.7]} 15. Bxh6
{[%clk 0:02:04.5]} 15... Rf7 {[%clk 0:01:12.2]} 16. Ng5 {[%clk 0:01:20.3]} 16...
Qf8 {[%clk 0:01:04.7]} 17. Nxf7 {[%clk 0:01:19.3]} 17... Qxf7 {[%clk 0:01:05.6]}
18. Bxg7 {[%clk 0:01:18.5]} 18... Qxg7 {[%clk 0:01:03.7]} 19. Rf3 {[%clk
0:01:17.9]} 19... Qxb2 {[%clk 0:01:01.9]} 20. Rg3+ {[%clk 0:00:57.9]} 20... Kf8
{[%clk 0:01:00.9]} 21. Qh6+ {[%clk 0:00:54.9]} 21... Ke8 {[%clk 0:01:01.3]} 22.
Re1 {[%clk 0:00:53.4]} 22... Qxa2 {[%clk 0:00:53.2]} 23. Qxd6 {[%clk 0:00:47.7]}
23... Ra7 {[%clk 0:00:49.1]} 24. Qxc6+ {[%clk 0:00:40.6]} 24... Kd8 {[%clk
0:00:46.8]} 25. Qxc5 {[%clk 0:00:34.4]} 25... Rc7 {[%clk 0:00:43.7]} 26. Qd4+
{[%clk 0:00:32.3]} 26... Bd7 {[%clk 0:00:42.2]} 27. c4 {[%clk 0:00:31.1]} 27...
Kc8 {[%clk 0:00:40.2]} 28. h4 {[%clk 0:00:21.6]} 28... Bc6 {[%clk 0:00:30.9]}
29. Rg8+ {[%clk 0:00:16.7]} 29... Kb7 {[%clk 0:00:30.8]} 30. Qf2 {[%clk
0:00:12.6]} 30... Qb3 {[%clk 0:00:25.1]} 31. Qf1 {[%clk 0:00:11.1]} 31... Qb6+
{[%clk 0:00:19.1]} 32. Kh2 {[%clk 0:00:11.4]} 32... Qd4 {[%clk 0:00:06.1]} 33.
Rb1+ {[%clk 0:00:11.3]} 33... Ka7 {[%clk 0:00:05.1]} 34. Qg1 {[%clk 0:00:12.2]}
34... Rd7 {[%clk 0:00:05.5]} 35. Qxd4+ {[%clk 0:00:11.7]} 35... Rxd4 {[%clk
0:00:06.4]} 36. Kg3 {[%clk 0:00:11.5]} 36... Rxd3+ {[%clk 0:00:06.5]} 37. Kf4
{[%clk 0:00:12.1]} 37... Rd4+ {[%clk 0:00:07.1]} 38. Kxf5 {[%clk 0:00:09.3]}
38... Rxh4 {[%clk 0:00:06.3]} 39. g4 {[%clk 0:00:09.7]} 39... a5 {[%clk
0:00:03.3]} 40. Rg7 {[%clk 0:00:08.3]} 40... a4 {[%clk 0:00:01.9]} 41. Rxe7+
{[%clk 0:00:07.9]} 41... Ka8 {[%clk 0:00:02]} 42. Rd1 {[%clk 0:00:04.8]} 1-0

[Event "*** Titled Tuesday Blitz"]
[Site "Chess.com"]
[Date "2020.04.28"]
[Round "4"]
[White "ferdipy"]
[Black "m-garcett"]
[Result "1-0"]
[WhiteElo "2267"]
[BlackElo "2072"]
[TimeControl "180+1"]
[EndTime "10:40:57 PDT"]
[Termination "ferdipy won on time"]

1. e4 {[%clk 0:03:00.9]} 1... c5 {[%clk 0:02:59.7]} 2. d4 {[%clk 0:03:00.6]}
2... cxd4 {[%clk 0:02:59]} 3. c3 {[%clk 0:03:01.5]} 3... dxc3 {[%clk 0:02:59.9]}
4. Nxc3 {[%clk 0:03:02.4]} 4... d6 {[%clk 0:02:59]} 5. Bc4 {[%clk 0:03:02.9]}
5... e6 {[%clk 0:02:58.5]} 6. Nf3 {[%clk 0:03:03.3]} 6... h6 {[%clk 0:02:58.7]}
7. O-O {[%clk 0:03:03.9]} 7... a6 {[%clk 0:02:59]} 8. Qe2 {[%clk 0:03:04.2]}
8... Nc6 {[%clk 0:02:56.6]} 9. Bf4 {[%clk 0:03:03.2]} 9... Nge7 {[%clk
0:02:51.5]} 10. Rfd1 {[%clk 0:03:02.9]} 10... Ng6 {[%clk 0:02:49.4]} 11. Bg3
{[%clk 0:03:01.8]} 11... Be7 {[%clk 0:02:49.5]} 12. Rac1 {[%clk 0:03:00.3]}
12... O-O {[%clk 0:02:49]} 13. e5 {[%clk 0:02:52.8]} 13... d5 {[%clk 0:02:48.2]}
14. Bd3 {[%clk 0:02:27.9]} 14... Nh4 {[%clk 0:02:47.5]} 15. Nxh4 {[%clk
0:02:16.3]} 15... Bxh4 {[%clk 0:02:48.4]} 16. Na4 {[%clk 0:02:09.9]} 16... Bxg3
{[%clk 0:02:42]} 17. hxg3 {[%clk 0:02:05.3]} 17... Qg5 {[%clk 0:02:14.9]} 18.
Nb6 {[%clk 0:01:56.9]} 18... Rb8 {[%clk 0:02:11.9]} 19. Bxa6 {[%clk 0:01:54.1]}
19... Nxe5 {[%clk 0:01:32.4]} 20. Bb5 {[%clk 0:01:52.6]} 20... Ng4 {[%clk
0:01:20.3]} 21. Qf3 {[%clk 0:01:43.5]} 21... e5 {[%clk 0:00:48.3]} 22. Nxc8
{[%clk 0:01:35.1]} 22... Rbxc8 {[%clk 0:00:45.9]} 23. Rxc8 {[%clk 0:01:34.7]}
23... Rxc8 {[%clk 0:00:46.8]} 24. Bd7 {[%clk 0:01:31.7]} 24... Rc4 {[%clk
0:00:20.5]} 25. Bxg4 {[%clk 0:01:03.1]} 25... Qxg4 {[%clk 0:00:15.5]} 26. Qxg4
{[%clk 0:00:52.7]} 26... Rxg4 {[%clk 0:00:15.3]} 27. Rxd5 {[%clk 0:00:53.6]}
27... Rb4 {[%clk 0:00:14.6]} 28. b3 {[%clk 0:00:53.4]} 28... f6 {[%clk
0:00:13.6]} 29. Kf1 {[%clk 0:00:53.6]} 29... Kf7 {[%clk 0:00:12.1]} 30. Ke2
{[%clk 0:00:53.9]} 30... Ke6 {[%clk 0:00:12.2]} 31. Rd8 {[%clk 0:00:52.9]} 31...
Kf5 {[%clk 0:00:11]} 32. f3 {[%clk 0:00:51.8]} 32... g5 {[%clk 0:00:10.9]} 33.
Ke3 {[%clk 0:00:50.1]} 33... b5 {[%clk 0:00:10.1]} 34. g4+ {[%clk 0:00:47.6]}
34... Kg6 {[%clk 0:00:08.8]} 35. Rd5 {[%clk 0:00:47.9]} 35... Kf7 {[%clk
0:00:07]} 36. Kd3 {[%clk 0:00:46.2]} 36... Ke6 {[%clk 0:00:06.5]} 37. Rd8 {[%clk
0:00:44.5]} 37... Rf4 {[%clk 0:00:06.5]} 38. Rh8 {[%clk 0:00:39.7]} 38... b4
{[%clk 0:00:06.6]} 39. Rxh6 {[%clk 0:00:38.8]} 39... Rd4+ {[%clk 0:00:06.8]} 40.
Ke3 {[%clk 0:00:38.3]} 40... Rd1 {[%clk 0:00:05.8]} 41. Rh8 {[%clk 0:00:36.5]}
41... Ra1 {[%clk 0:00:05.2]} 42. Rb8 {[%clk 0:00:34.3]} 42... Rxa2 {[%clk
0:00:04.9]} 43. Rxb4 {[%clk 0:00:35.2]} 43... Rxg2 {[%clk 0:00:05]} 44. Rb6+
{[%clk 0:00:35.9]} 44... Ke7 {[%clk 0:00:04.2]} 45. Ke4 {[%clk 0:00:35.7]} 45...
Re2+ {[%clk 0:00:03.7]} 46. Kd3 {[%clk 0:00:33.2]} 46... Rf2 {[%clk 0:00:03.6]}
47. Ke3 {[%clk 0:00:33.3]} 47... Rb2 {[%clk 0:00:03.2]} 48. b4 {[%clk
0:00:33.6]} 48... Rb3+ {[%clk 0:00:02.7]} 49. Ke4 {[%clk 0:00:34.5]} 49... Rb2
{[%clk 0:00:02]} 50. Kf5 {[%clk 0:00:31.6]} 50... Rb3 {[%clk 0:00:01.1]} 51. Ke4
{[%clk 0:00:30.5]} 1-0

[Event "*** Titled Tuesday Blitz"]
[Site "Chess.com"]
[Date "2020.04.28"]
[Round "4"]
[White "GMartin_Petrov"]
[Black "Sibelephant"]
[Result "0-1"]
[WhiteElo "2676"]
[BlackElo "3194"]
[TimeControl "180+1"]
[EndTime "10:40:58 PDT"]
[Termination "Sibelephant won by resignation"]

1. e4 {[%clk 0:03:00.9]} 1... c5 {[%clk 0:02:58.4]} 2. Nf3 {[%clk 0:02:59.5]}
2... d6 {[%clk 0:02:58.8]} 3. d4 {[%clk 0:02:59.8]} 3... cxd4 {[%clk 0:02:59.5]}
4. Nxd4 {[%clk 0:03:00.7]} 4... Nf6 {[%clk 0:03:00.1]} 5. Nc3 {[%clk 0:03:00.8]}
5... a6 {[%clk 0:03:00.8]} 6. Be3 {[%clk 0:03:00.8]} 6... Ng4 {[%clk 0:03:00.1]}
7. Bg5 {[%clk 0:02:59.3]} 7... h6 {[%clk 0:03:00.3]} 8. Bh4 {[%clk 0:02:57.5]}
8... g5 {[%clk 0:03:00.6]} 9. Bg3 {[%clk 0:02:57.6]} 9... Bg7 {[%clk 0:03:01.2]}
10. h3 {[%clk 0:02:50.6]} 10... Nf6 {[%clk 0:03:00.9]} 11. Qd2 {[%clk
0:02:27.2]} 11... Nc6 {[%clk 0:02:55.9]} 12. Nf5 {[%clk 0:02:25.1]} 12... Bxf5
{[%clk 0:02:54.3]} 13. exf5 {[%clk 0:02:25.3]} 13... Qa5 {[%clk 0:02:50.9]} 14.
O-O-O {[%clk 0:02:14.7]} 14... Nh5 {[%clk 0:02:25]} 15. Bc4 {[%clk 0:01:46]}
15... Bxc3 {[%clk 0:02:20.1]} 16. Qxc3 {[%clk 0:01:45.6]} 16... Qxc3 {[%clk
0:02:19.9]} 17. bxc3 {[%clk 0:01:46.5]} 17... Nxg3 {[%clk 0:02:13]} 18. fxg3
{[%clk 0:01:46.2]} 18... Ne5 {[%clk 0:01:56.8]} 19. Bb3 {[%clk 0:01:45.9]} 19...
Rc8 {[%clk 0:01:45.2]} 20. Kb2 {[%clk 0:01:40.3]} 20... Kd7 {[%clk 0:01:31.3]}
21. Rhe1 {[%clk 0:01:34.1]} 21... Rc5 {[%clk 0:01:31.3]} 22. Rd4 {[%clk
0:01:23.6]} 22... Rhc8 {[%clk 0:01:27.8]} 23. Re3 {[%clk 0:01:21.8]} 23... b5
{[%clk 0:01:17.9]} 24. g4 {[%clk 0:01:11.7]} 24... e6 {[%clk 0:01:14.2]} 25. Rd1
{[%clk 0:00:52.6]} 25... a5 {[%clk 0:01:08.1]} 26. a3 {[%clk 0:00:51.9]} 26...
Nc4+ {[%clk 0:00:58.1]} 27. Bxc4 {[%clk 0:00:51.1]} 27... Rxc4 {[%clk
0:00:58.8]} 28. Rd2 {[%clk 0:00:36.3]} 28... d5 {[%clk 0:00:48.9]} 29. Rf3
{[%clk 0:00:32.5]} 29... Rf4 {[%clk 0:00:26.4]} 30. Rd4 {[%clk 0:00:26.7]} 30...
Rc4 {[%clk 0:00:22]} 31. Rfxf4 {[%clk 0:00:20.7]} 31... gxf4 {[%clk 0:00:21.4]}
32. Rd3 {[%clk 0:00:18.2]} 32... Kd6 {[%clk 0:00:20.7]} 33. fxe6 {[%clk
0:00:16.3]} 33... fxe6 {[%clk 0:00:21]} 34. h4 {[%clk 0:00:16.6]} 34... e5
{[%clk 0:00:21.2]} 35. g5 {[%clk 0:00:14.7]} 35... hxg5 {[%clk 0:00:18.2]} 36.
hxg5 {[%clk 0:00:14.4]} 36... Ke6 {[%clk 0:00:18.5]} 37. Rh3 {[%clk 0:00:13.7]}
37... Kf5 {[%clk 0:00:17.4]} 38. Rh8 {[%clk 0:00:11.5]} 38... Kxg5 {[%clk
0:00:16.2]} 39. Rd8 {[%clk 0:00:10.3]} 39... Rc5 {[%clk 0:00:16.3]} 40. Kc1
{[%clk 0:00:10.5]} 40... Kg4 {[%clk 0:00:11.7]} 41. Rg8+ {[%clk 0:00:10.2]}
41... Kf5 {[%clk 0:00:11.6]} 42. Kd2 {[%clk 0:00:10.3]} 42... Ke4 {[%clk
0:00:11.3]} 43. Rb8 {[%clk 0:00:09.6]} 43... Rc6 {[%clk 0:00:10.9]} 44. Rxb5
{[%clk 0:00:09.2]} 44... Rg6 {[%clk 0:00:11.6]} 0-1

[Event "*** Titled Tuesday Blitz"]
[Site "Chess.com"]
[Date "2020.04.28"]
[Round "4"]
[White "vanea_03"]
[Black "Sanyura"]
[Result "1-0"]
[WhiteElo "2685"]
[BlackElo "2484"]
[TimeControl "180+1"]
[EndTime "10:40:58 PDT"]
[Termination "vanea_03 won by resignation"]

1. d4 {[%clk 0:03:00.9]} 1... Nf6 {[%clk 0:02:58.5]} 2. c4 {[%clk 0:02:59.2]}
2... c5 {[%clk 0:02:57.4]} 3. d5 {[%clk 0:02:59]} 3... b5 {[%clk 0:02:57.7]} 4.
cxb5 {[%clk 0:02:59.3]} 4... a6 {[%clk 0:02:58.2]} 5. b6 {[%clk 0:02:59.9]} 5...
e6 {[%clk 0:02:50.5]} 6. Nc3 {[%clk 0:02:54]} 6... Bb7 {[%clk 0:02:48.8]} 7. e4
{[%clk 0:02:51.5]} 7... Qxb6 {[%clk 0:02:44]} 8. Nf3 {[%clk 0:02:50.7]} 8... Be7
{[%clk 0:02:42.1]} 9. Bc4 {[%clk 0:02:46.5]} 9... O-O {[%clk 0:02:41.3]} 10. O-O
{[%clk 0:02:39.2]} 10... exd5 {[%clk 0:02:34.9]} 11. exd5 {[%clk 0:02:35]} 11...
d6 {[%clk 0:02:35]} 12. Re1 {[%clk 0:02:34.6]} 12... Re8 {[%clk 0:02:33.4]} 13.
Bg5 {[%clk 0:02:27.9]} 13... Nbd7 {[%clk 0:02:33.2]} 14. Qc2 {[%clk 0:02:15.9]}
14... h6 {[%clk 0:02:28.6]} 15. Bf4 {[%clk 0:02:12.7]} 15... Bf8 {[%clk
0:02:25.2]} 16. h3 {[%clk 0:01:41.1]} 16... Qb4 {[%clk 0:02:20.6]} 17. Nd2
{[%clk 0:01:29.7]} 17... Rab8 {[%clk 0:02:12.7]} 18. a3 {[%clk 0:01:25.6]} 18...
Qb6 {[%clk 0:02:10.4]} 19. Nf3 {[%clk 0:01:08]} 19... Ba8 {[%clk 0:02:02.6]} 20.
b3 {[%clk 0:01:06.5]} 20... Qa5 {[%clk 0:01:57.4]} 21. Rxe8 {[%clk 0:00:52.5]}
21... Rxe8 {[%clk 0:01:58.3]} 22. Bd2 {[%clk 0:00:49.8]} 22... Qd8 {[%clk
0:01:50.7]} 23. Qd3 {[%clk 0:00:43.7]} 23... Nb6 {[%clk 0:01:47.2]} 24. Bf4
{[%clk 0:00:38.7]} 24... g6 {[%clk 0:01:38.5]} 25. Rd1 {[%clk 0:00:33.5]} 25...
Bg7 {[%clk 0:01:33.9]} 26. Bh2 {[%clk 0:00:30.9]} 26... Nxc4 {[%clk 0:01:10.6]}
27. bxc4 {[%clk 0:00:29.5]} 27... Qa5 {[%clk 0:01:09.1]} 28. Bxd6 {[%clk
0:00:25.2]} 28... Nd7 {[%clk 0:01:00.2]} 29. Ne4 {[%clk 0:00:20.6]} 29... Qa4
{[%clk 0:00:51.8]} 30. Rb1 {[%clk 0:00:16.9]} 30... Qa5 {[%clk 0:00:41.7]} 31.
h4 {[%clk 0:00:11.8]} 31... Nf6 {[%clk 0:00:09]} 32. Nxf6+ {[%clk 0:00:11.8]}
32... Bxf6 {[%clk 0:00:09.9]} 33. g3 {[%clk 0:00:12.5]} 33... Kg7 {[%clk
0:00:09]} 34. Kg2 {[%clk 0:00:12.3]} 34... Qd8 {[%clk 0:00:08.2]} 35. Bf4 {[%clk
0:00:10.4]} 35... a5 {[%clk 0:00:08.3]} 36. Be3 {[%clk 0:00:09.1]} 36... Qd7
{[%clk 0:00:08.3]} 37. Bxc5 {[%clk 0:00:08.6]} 37... Rc8 {[%clk 0:00:07.9]} 38.
Bd4 {[%clk 0:00:08.8]} 38... Qd6 {[%clk 0:00:05.1]} 39. Rb6 {[%clk 0:00:08.4]}
39... Rc6 {[%clk 0:00:03]} 40. dxc6 {[%clk 0:00:04.9]} 40... Bxd4 {[%clk
0:00:03]} 41. Qxd4+ {[%clk 0:00:04.7]} 1-0

[Event "*** Titled Tuesday Blitz"]
[Site "Chess.com"]
[Date "2020.04.28"]
[Round "4"]
[White "shav3184"]
[Black "ShahMatKanal"]
[Result "1-0"]
[WhiteElo "2291"]
[BlackElo "2448"]
[TimeControl "180+1"]
[EndTime "10:40:58 PDT"]
[Termination "shav3184 won by resignation"]

1. e4 {[%clk 0:03:00.9]} 1... c5 {[%clk 0:03:00]} 2. Nf3 {[%clk 0:03:00.3]} 2...
Nc6 {[%clk 0:02:59.4]} 3. d4 {[%clk 0:03:00]} 3... cxd4 {[%clk 0:03:00.3]} 4.
Nxd4 {[%clk 0:02:59.4]} 4... e5 {[%clk 0:03:00.7]} 5. Nb5 {[%clk 0:02:58.7]}
5... a6 {[%clk 0:03:01.1]} 6. Nd6+ {[%clk 0:02:57.5]} 6... Bxd6 {[%clk
0:03:01.4]} 7. Qxd6 {[%clk 0:02:57.3]} 7... Qf6 {[%clk 0:03:02.3]} 8. Qxf6
{[%clk 0:02:57.4]} 8... Nxf6 {[%clk 0:03:02.9]} 9. Nc3 {[%clk 0:02:53.7]} 9...
d5 {[%clk 0:03:03.2]} 10. exd5 {[%clk 0:02:36.9]} 10... Nb4 {[%clk 0:03:03]} 11.
Bd3 {[%clk 0:02:03.4]} 11... Nxd3+ {[%clk 0:02:59]} 12. cxd3 {[%clk 0:02:02.9]}
12... Bf5 {[%clk 0:02:59.9]} 13. O-O {[%clk 0:01:56.8]} 13... O-O-O {[%clk
0:02:55.8]} 14. Bg5 {[%clk 0:01:52.7]} 14... Bxd3 {[%clk 0:02:53]} 15. Rfe1
{[%clk 0:01:38.4]} 15... Rhe8 {[%clk 0:02:48.9]} 16. Rad1 {[%clk 0:01:36]} 16...
Bg6 {[%clk 0:02:41.1]} 17. d6 {[%clk 0:01:23.5]} 17... Re6 {[%clk 0:02:31.3]}
18. f4 {[%clk 0:01:08.6]} 18... exf4 {[%clk 0:02:11.5]} 19. Rxe6 {[%clk
0:01:04.7]} 19... fxe6 {[%clk 0:02:11]} 20. Bxf4 {[%clk 0:01:04.6]} 20... Ne4
{[%clk 0:01:59.5]} 21. Nxe4 {[%clk 0:01:03.2]} 21... Bxe4 {[%clk 0:02:00.4]} 22.
Be5 {[%clk 0:01:03.3]} 22... Bd5 {[%clk 0:01:53.7]} 23. Rc1+ {[%clk 0:01:00.5]}
23... Bc6 {[%clk 0:01:52.1]} 24. Rf1 {[%clk 0:00:55.5]} 24... g6 {[%clk
0:01:37.6]} 25. Rf6 {[%clk 0:00:45.5]} 25... Bd5 {[%clk 0:01:30]} 26. a3 {[%clk
0:00:33.9]} 26... b5 {[%clk 0:01:23.4]} 27. Kf2 {[%clk 0:00:31.8]} 27... Rd7
{[%clk 0:01:20.8]} 28. Ke3 {[%clk 0:00:29.6]} 28... Bxg2 {[%clk 0:01:12.1]} 29.
Rxe6 {[%clk 0:00:27.1]} 29... Kb7 {[%clk 0:01:11.4]} 30. Kd4 {[%clk 0:00:21.6]}
30... Kc6 {[%clk 0:01:10.3]} 31. Re8 {[%clk 0:00:20.5]} 31... a5 {[%clk
0:00:59.3]} 32. Rc8+ {[%clk 0:00:20.5]} 32... Kb7 {[%clk 0:00:56.7]} 33. Rc7+
{[%clk 0:00:20.6]} 33... Rxc7 {[%clk 0:00:56]} 34. dxc7 {[%clk 0:00:21.5]} 34...
g5 {[%clk 0:00:31.2]} 35. Kc5 {[%clk 0:00:20.6]} 35... Bf1 {[%clk 0:00:28.9]}
36. b4 {[%clk 0:00:19.9]} 36... axb4 {[%clk 0:00:27.9]} 37. axb4 {[%clk
0:00:20.8]} 37... h5 {[%clk 0:00:26.9]} 38. Kd6 {[%clk 0:00:20.8]} 38... Bd3
{[%clk 0:00:21.6]} 39. Kd7 {[%clk 0:00:20.7]} 39... Bf5+ {[%clk 0:00:21.4]} 40.
Ke7 {[%clk 0:00:21]} 40... g4 {[%clk 0:00:18.1]} 41. Kf6 {[%clk 0:00:20.9]}
41... Bd7 {[%clk 0:00:18.2]} 42. Kg5 {[%clk 0:00:20.4]} 42... Be8 {[%clk
0:00:18.3]} 43. Kf6 {[%clk 0:00:20.1]} 43... h4 {[%clk 0:00:14.2]} 44. Ke7
{[%clk 0:00:19.4]} 44... Bc6 {[%clk 0:00:09.8]} 45. Kd8 {[%clk 0:00:18]} 1-0

[Event "*** Titled Tuesday Blitz"]
[Site "Chess.com"]
[Date "2020.04.28"]
[Round "4"]
[White "Baby_Legs"]
[Black "NiranjanNavalgund"]
[Result "0-1"]
[WhiteElo "2704"]
[BlackElo "2488"]
[TimeControl "180+1"]
[EndTime "10:40:59 PDT"]
[Termination "NiranjanNavalgund won by checkmate"]

1. d4 {[%clk 0:03:00.9]} 1... d5 {[%clk 0:02:58.8]} 2. c4 {[%clk 0:03:00.7]}
2... e6 {[%clk 0:02:59.2]} 3. Nc3 {[%clk 0:03:00.5]} 3... c5 {[%clk 0:02:59.4]}
4. cxd5 {[%clk 0:02:59.8]} 4... exd5 {[%clk 0:03:00.3]} 5. Nf3 {[%clk
0:02:59.2]} 5... Nc6 {[%clk 0:03:00.2]} 6. g3 {[%clk 0:02:59.2]} 6... Nf6 {[%clk
0:03:00.5]} 7. Bg2 {[%clk 0:02:59.7]} 7... cxd4 {[%clk 0:03:01]} 8. Nxd4 {[%clk
0:02:59.2]} 8... Bc5 {[%clk 0:03:01.5]} 9. Nb3 {[%clk 0:02:54.3]} 9... Bb6
{[%clk 0:03:01.7]} 10. O-O {[%clk 0:02:53.8]} 10... d4 {[%clk 0:03:02.1]} 11.
Ne4 {[%clk 0:02:51.4]} 11... Nxe4 {[%clk 0:02:58.8]} 12. Bxe4 {[%clk 0:02:52.3]}
12... Bh3 {[%clk 0:02:55.1]} 13. Re1 {[%clk 0:02:48.1]} 13... O-O {[%clk
0:02:54.8]} 14. Qd3 {[%clk 0:02:32.9]} 14... f5 {[%clk 0:02:50.8]} 15. Bh1
{[%clk 0:02:27]} 15... Kh8 {[%clk 0:02:44.7]} 16. Bf4 {[%clk 0:02:21.8]} 16...
Rc8 {[%clk 0:02:37.1]} 17. Rac1 {[%clk 0:02:17.3]} 17... Nb4 {[%clk 0:02:14.6]}
18. Qb5 {[%clk 0:02:10.8]} 18... Nc2 {[%clk 0:02:11.5]} 19. Red1 {[%clk
0:02:03.4]} 19... a6 {[%clk 0:02:10.4]} 20. Qa4 {[%clk 0:01:48.6]} 20... Qe7
{[%clk 0:02:01.1]} 21. Bf3 {[%clk 0:01:31.6]} 21... g5 {[%clk 0:01:49.2]} 22.
Bd2 {[%clk 0:01:16.5]} 22... g4 {[%clk 0:01:48.8]} 23. Bh1 {[%clk 0:00:58.3]}
23... Qxe2 {[%clk 0:01:48.5]} 24. Bf4 {[%clk 0:00:31.5]} 24... d3 {[%clk
0:01:38.6]} 25. Rf1 {[%clk 0:00:30.2]} 25... Rfe8 {[%clk 0:01:12.8]} 26. Qd7
{[%clk 0:00:18.3]} 26... Rcd8 {[%clk 0:00:52.9]} 27. Qf7 {[%clk 0:00:14]} 27...
Rf8 {[%clk 0:00:25.4]} 28. Qxb7 {[%clk 0:00:13.5]} 28... Bxf1 {[%clk 0:00:23.7]}
29. Rxf1 {[%clk 0:00:12.1]} 29... Bd4 {[%clk 0:00:12.6]} 30. Nxd4 {[%clk
0:00:11.2]} 30... Nxd4 {[%clk 0:00:13.5]} 31. Bh6 {[%clk 0:00:08.7]} 31... Ne6
{[%clk 0:00:12]} 32. Bxf8 {[%clk 0:00:07.5]} 32... Rxf8 {[%clk 0:00:12.9]} 33.
Qe7 {[%clk 0:00:07.3]} 33... d2 {[%clk 0:00:11.8]} 34. Bd5 {[%clk 0:00:05.4]}
34... Qxf1+ {[%clk 0:00:11.7]} 35. Kxf1 {[%clk 0:00:05.3]} 35... d1=Q+ {[%clk
0:00:11.9]} 36. Kg2 {[%clk 0:00:06.2]} 36... Qxd5+ {[%clk 0:00:11.9]} 37. Kg1
{[%clk 0:00:06.7]} 37... Qd1+ {[%clk 0:00:12.1]} 38. Kg2 {[%clk 0:00:07.1]}
38... Qf3+ {[%clk 0:00:12.3]} 39. Kg1 {[%clk 0:00:07.3]} 39... Qe4 {[%clk
0:00:12.5]} 40. h4 {[%clk 0:00:06.5]} 40... Rc8 {[%clk 0:00:12.6]} 41. Qf6+
{[%clk 0:00:06.3]} 41... Ng7 {[%clk 0:00:12.7]} 42. Kh2 {[%clk 0:00:05.7]} 42...
Qf3 {[%clk 0:00:11.6]} 43. Qd4 {[%clk 0:00:05.7]} 43... Re8 {[%clk 0:00:11.6]}
44. h5 {[%clk 0:00:05.6]} 44... f4 {[%clk 0:00:11.9]} 45. gxf4 {[%clk
0:00:03.4]} 45... Qh3+ {[%clk 0:00:11.8]} 46. Kg1 {[%clk 0:00:03.5]} 46... Re1#
{[%clk 0:00:12]} 0-1

[Event "*** Titled Tuesday Blitz"]
[Site "Chess.com"]
[Date "2020.04.28"]
[Round "4"]
[White "GMHess"]
[Black "lupta_robin"]
[Result "1-0"]
[WhiteElo "2881"]
[BlackElo "2543"]
[TimeControl "180+1"]
[EndTime "10:40:59 PDT"]
[Termination "GMHess won by resignation"]

1. b3 {[%clk 0:03:00.9]} 1... Nf6 {[%clk 0:02:52]} 2. Bb2 {[%clk 0:02:56.4]}
2... e6 {[%clk 0:02:52.2]} 3. h3 {[%clk 0:02:56.1]} 3... d5 {[%clk 0:02:52.5]}
4. e3 {[%clk 0:02:56.6]} 4... Be7 {[%clk 0:02:51.7]} 5. d3 {[%clk 0:02:57.2]}
5... O-O {[%clk 0:02:51.6]} 6. Nd2 {[%clk 0:02:57.9]} 6... c5 {[%clk 0:02:51.4]}
7. Ne2 {[%clk 0:02:58.4]} 7... Nc6 {[%clk 0:02:52]} 8. g4 {[%clk 0:02:58.8]}
8... e5 {[%clk 0:02:48.5]} 9. Bg2 {[%clk 0:02:58.6]} 9... Be6 {[%clk 0:02:45.8]}
10. Ng3 {[%clk 0:02:58.7]} 10... Nd7 {[%clk 0:02:38.3]} 11. Nf5 {[%clk
0:02:53.2]} 11... f6 {[%clk 0:02:32.7]} 12. e4 {[%clk 0:02:46.3]} 12... d4
{[%clk 0:02:29.1]} 13. h4 {[%clk 0:02:40.4]} 13... g6 {[%clk 0:02:22.6]} 14.
Nxe7+ {[%clk 0:02:35]} 14... Qxe7 {[%clk 0:02:23.5]} 15. Qe2 {[%clk 0:02:13.5]}
15... b5 {[%clk 0:02:22.3]} 16. a4 {[%clk 0:02:06.7]} 16... a6 {[%clk
0:02:11.9]} 17. O-O {[%clk 0:02:00.8]} 17... Nb6 {[%clk 0:02:03.3]} 18. axb5
{[%clk 0:01:59.4]} 18... axb5 {[%clk 0:02:03.1]} 19. Rfc1 {[%clk 0:01:32]} 19...
c4 {[%clk 0:01:48.4]} 20. dxc4 {[%clk 0:01:24.5]} 20... bxc4 {[%clk 0:01:46.7]}
21. bxc4 {[%clk 0:01:12.2]} 21... Qb4 {[%clk 0:01:38.3]} 22. Rab1 {[%clk
0:00:59.3]} 22... Nxc4 {[%clk 0:01:34.4]} 23. c3 {[%clk 0:00:50.4]} 23... Qa4
{[%clk 0:01:22.5]} 24. Nxc4 {[%clk 0:00:29]} 24... Bxc4 {[%clk 0:01:20.8]} 25.
Qd2 {[%clk 0:00:26.2]} 25... d3 {[%clk 0:01:06.1]} 26. g5 {[%clk 0:00:24.3]}
26... fxg5 {[%clk 0:01:04.6]} 27. Qxg5 {[%clk 0:00:16.1]} 27... Qa7 {[%clk
0:01:02.2]} 28. Qg3 {[%clk 0:00:11.3]} 28... Rad8 {[%clk 0:00:48.6]} 29. Ra1
{[%clk 0:00:10.6]} 29... Qf7 {[%clk 0:00:43.1]} 30. Ba3 {[%clk 0:00:10.6]} 30...
Rfe8 {[%clk 0:00:43]} 31. Rd1 {[%clk 0:00:09.3]} 31... Re6 {[%clk 0:00:35.3]}
32. Bc5 {[%clk 0:00:08.8]} 32... Rf6 {[%clk 0:00:16.6]} 33. Be3 {[%clk
0:00:08.6]} 33... Rf4 {[%clk 0:00:17.1]} 34. Bxf4 {[%clk 0:00:08.1]} 34... exf4
{[%clk 0:00:17.2]} 35. Qg5 {[%clk 0:00:08.2]} 35... d2 {[%clk 0:00:15.5]} 36. e5
{[%clk 0:00:07.6]} 36... Ne7 {[%clk 0:00:07.7]} 37. Ra7 {[%clk 0:00:05]} 37...
Kf8 {[%clk 0:00:05.1]} 38. Qh6+ {[%clk 0:00:04.1]} 38... Ke8 {[%clk 0:00:04.8]}
39. Bc6+ {[%clk 0:00:02.9]} 39... Nxc6 {[%clk 0:00:03.9]} 40. Rxf7 {[%clk
0:00:03.8]} 40... Bxf7 {[%clk 0:00:03.4]} 41. Qxf4 {[%clk 0:00:03.9]} 41... Ne7
{[%clk 0:00:02.8]} 42. Rxd2 {[%clk 0:00:03.9]} 42... Rxd2 {[%clk 0:00:03.2]} 43.
Qxd2 {[%clk 0:00:04]} 43... Be6 {[%clk 0:00:04.1]} 44. Qd4 {[%clk 0:00:04.3]}
44... Kf7 {[%clk 0:00:04.8]} 45. Qc5 {[%clk 0:00:04.8]} 45... Nf5 {[%clk
0:00:05.7]} 46. f4 {[%clk 0:00:05.1]} 46... Nxh4 {[%clk 0:00:06.1]} 47. Qc7+
{[%clk 0:00:05.4]} 47... Kg8 {[%clk 0:00:05.8]} 48. Qd8+ {[%clk 0:00:05.5]} 1-0